Cogmind - Beta 9.2 @@@ ROGUE MODE // 2019.12.16 @ 10:59:27 Player: aperiodic Result: Self-destructed Performance ------------- Evolutions (7) 3500 Regions Visited (14) 2800 Robots Destroyed (221) 1105 Value Destroyed (6141) 6141 Prototype IDs (33) 660 Alien Tech Used (0) 0 Bonus (733) 733 TOTAL SCORE: 14939 Bonus ------- High Alert Combat Kills 396 Follower Combat Kills 37 Aligned with FarCom 300 Cogmind --------- Core Integrity 1012/1300 Matter 9/300 Energy 159/170 System Corruption 6% Temperature Cool (0) Movement Treading (160) Location -3/Research Parts ------- > --- POWER (1) -------- Micro Fission Core > --- PROPULSION (6) --- Heavy Treads Heavy Treads Enhanced Armored Medium Treads > --- UTILITY (10) ----- Medium Storage Unit Advanced Signal Interpreter Hacking Suite Improved Recalibrator > --- WEAPON (4) ------- Heavy Pick > --- INVENTORY (8) ---- Light Antimatter Reactor Improved VTOL Module Fusion Compressor AWS/Autocannon Peak State ------------ > --- POWER ------------ Micro Fission Core > --- PROPULSION ------- Field Propulsion Array Flying Fortress v7 > --- UTILITY ---------- Advanced Power Amplifier Medium Storage Unit Advanced Sensor Array Advanced Signal Interpreter Reaction Control System Improved Weapon Shielding Improved Medium Armor Plating Hacking Suite > --- WEAPON ----------- AWS/Autocannon Heavy Pick > --- INVENTORY -------- Improved VTOL Module Fusion Compressor Improved Recalibrator Heavy Rocket Launcher [Rating: 119] Favorites ----------- Power Light Nuclear Core Engine Light Angular Momentum Engine Power Core Light Nuclear Core Propulsion Improved Carbon-fiber Leg Treads Heavy Treads Leg Improved Carbon-fiber Leg Wheel Wheel Flight Unit Flying Fortress v7 Utility Large Storage Unit Device Advanced Sensor Array Storage Large Storage Unit Processor Advanced Signal Interpreter Hackware Hacking Suite Protection Hardened Medium Armor Plating Weapon Improved Assault Rifle Energy Gun Lightning Gun Energy Cannon EM Pulse Cannon Ballistic Gun Improved Assault Rifle Ballistic Cannon Gauss Cannon Launcher Heavy Rocket Launcher Special Weapon Plasma Cutter Impact Weapon Maul Slashing Weapon Scythe Piercing Weapon Heavy Pick Build | -11 -10 -10 -9 -9 -9 -8 -8 -7 -6 -6 -6 -5 -4 -3 ------- Run | Scr Mat Min Mat Min Exi Min Mat Fac Fac Was Fac Fac Fac Res Slots Evolved 14 | . . . 2 . . . 2 2 2 . . 2 2 2 Power . | . . . . . . . . . . . . . . . Propulsion 4 | . . . . . . . 2 1 . . . . 1 . Utility 8 | . . . 2 . . . . . 2 . . 1 1 2 Weapon 2 | . . . . . . . . 1 . . . 1 . . Parts Attached 178 | 6 10 9 18 10 4 2 59 21 3 3 17 3 9 4 Power 16 | 1 1 . 1 1 2 . 3 3 . . 3 . 1 . Engine 5 | 1 . . . . 2 . 2 . . . . . . . Core 11 | . 1 . 1 1 . . 1 3 . . 3 . 1 . Reactor . | . . . . . . . . . . . . . . . Propulsion 48 | 2 1 4 3 3 . 2 17 9 . 2 1 . 1 3 Treads 3 | . . . . . . . . . . . . . . 3 Leg 29 | . . 4 3 3 . . 10 9 . . . . . . Wheel 11 | 2 1 . . . . 2 6 . . . . . . . Hover . | . . . . . . . . . . . . . . . Flight 5 | . . . . . . . 1 . . 2 1 . 1 . Utility 34 | 1 3 1 4 2 2 . 5 1 3 . 6 2 4 . Device 8 | . . . . 1 1 . . . 1 . 1 2 2 . Storage 11 | 1 2 . 1 . 1 . 3 . . . 2 . 1 . Processor 1 | . . . . . . . . . . . 1 . . . Hackware 2 | . . . . . . . 1 1 . . . . . . Protection 12 | . 1 1 3 1 . . 1 . 2 . 2 . 1 . Artifact . | . . . . . . . . . . . . . . . Weapon 80 | 2 5 4 10 4 . . 34 8 . 1 7 1 3 1 Energy Gun 15 | . 3 . . 2 . . 9 1 . . . . . . Energy Cannon 2 | . . 1 . . . . 1 . . . . . . . Ballistic Gun 27 | 2 1 2 5 1 . . 12 1 . . 3 . . . Ballistic Cannon 10 | . 1 1 . . . . . 4 . . 2 1 1 . Launcher 9 | . . . 2 1 . . 1 1 . 1 1 . 2 . Special Weapon 1 | . . . . . . . 1 . . . . . . . Impact Weapon 2 | . . . 2 . . . . . . . . . . . Slashing Weapon 12 | . . . 1 . . . 10 1 . . . . . . Piercing Weapon 2 | . . . . . . . . . . . 1 . . 1 Special Melee Weapon . | . . . . . . . . . . . . . . . Unidentified Prototypes 6 | . . . . . . . 2 1 . . . 1 1 1 Parts Lost 35 | . 3 2 . 7 . . 9 5 . . . 1 1 7 Power 3 | . 1 . . 1 . . 1 . . . . . . . Propulsion 11 | . 1 . . 3 . . 3 3 . . . . . 1 Utility 8 | . . . . 1 . . 1 . . . . 1 1 4 Weapon 13 | . 1 2 . 2 . . 4 2 . . . . . 2 Highest Loss Streak 6 | . 2 1 . 3 . . 6 4 . . . 1 1 4 Average Slot Usage (%) 90 | . 97 94 99 86 88 89 95 93 65 66 71 56 61 42 Engine 3 | . 9 . . . 5 11 6 . . . . . . . Core 5 | . 4 14 11 11 5 . 1 7 6 6 6 5 5 4 Leg 18 | . . 27 21 12 11 9 20 34 13 1 . . . . Wheel 6 | . 26 . . . . 3 13 . . . . . . . Flight 1 | . . . . . . . . . . 11 13 11 10 4 Device 2 | . . . . 9 11 11 . . 5 6 6 7 12 7 Storage 19 | . 14 14 22 22 22 22 27 15 13 13 4 . 4 4 Hackware 5 | . . . . . . . 4 14 13 13 11 5 5 4 Protection 8 | . 13 14 21 10 11 11 2 . 5 6 10 6 9 2 Energy Gun 3 | . 13 3 . 1 . . 5 2 . . . . . . Ballistic Gun 10 | . 2 10 19 19 22 22 8 8 . . 9 . . . Ballistic Cannon 2 | . 11 6 . . . . . 6 . . 2 5 3 . Slashing Weapon 1 | . . . . . . . 2 . 6 1 . . . . Naked Turns . | . . . . . . . . . . . . . . . Heaviest Build 103 | 10 38 35 49 48 56 55 71 73 71 71 103 76 92 42 Greatest Support 175 | 20 20 20 20 20 19 26 72 92 38 78 78 78 95 175 Greatest Overweight (x) 13 | . 3 10 2 3 4 3 2 1 1 1 1 . 13 13 Average Overweight (x) . | . 1 1 2 2 2 2 . . 1 . . . . . Largest Inventory Capacity 24 | 6 16 10 14 14 16 16 24 22 18 18 18 8 8 8 Average Capacity 15 | 5 9 10 14 14 14 16 20 18 18 18 9 4 7 8 Most Carried 22 | 2 8 10 14 14 16 16 22 22 16 15 14 4 7 7 Average Carried 14 | . 6 7 11 9 12 15 19 17 14 11 8 3 5 6 Final Capacity 22 | 6 10 10 14 14 16 16 22 18 18 18 8 4 8 8 Final Carried 22 | 2 6 10 14 10 16 16 22 16 15 11 6 4 7 6 Class Distribution -------------------- 41% | Mutant 24% | Hauler-Mutant 12% | Hacker-Gunner 7% | Scavenger-Mutant 7% | Hacker-Mutant Dominant Class ---------------- Mutant | -10/Materials Mutant | -10/Mines Mutant | -9/Materials Mutant | -9/Mines Mutant | -9/Exiles Mutant | -8/Mines Hauler-Mutant | -8/Materials Hacker-Gunner | -7/Factory Hacker-Mutant | -6/Factory Hacker-Mutant | -6/Waste Hacker-Tank | -6/Factory Skirmisher | -5/Factory Tank | -4/Factory Mutant | -3/Research Resources | -11 -10 -10 -9 -9 -9 -8 -8 -7 -6 -6 -6 -5 -4 -3 ----------- Run | Scr Mat Min Mat Min Exi Min Mat Fac Fac Was Fac Fac Fac Res Matter Collected 4683 | 260 304 120 846 331 . 85 966 855 74 400 360 26 45 11 Remotely . | . . . . . . . . . . . . . . . Salvage Created 7736 | . 697 190 1147 418 . 67 1974 1212 74 555 383 260 759 . Parts 419 | . 36 12 97 7 . 6 135 58 2 1 23 11 31 . Haulers Intercepted 15 | . 1 . 5 . . . 6 1 . . . 1 1 . Recyclers Shooed 6 | . . . . 1 . . 2 2 . . . . 1 . Parts Field Recycled . | . . . . . . . . . . . . . . . Retrieved Matter . | . . . . . . . . . . . . . . . Parts Self-Destructed . | . . . . . . . . . . . . . . . Prevented . | . . . . . . . . . . . . . . . Kills | -11 -10 -10 -9 -9 -9 -8 -8 -7 -6 -6 -6 -5 -4 -3 ------- Run | Scr Mat Min Mat Min Exi Min Mat Fac Fac Was Fac Fac Fac Res Combat Hostiles Destroyed 135 | . 14 4 25 16 . . 26 19 1 2 10 4 14 . Melee 2 | . . . . . . . 1 . 1 . . . . . Guns 78 | . 10 2 20 15 . . 19 12 . . . . . . Cannons 35 | . 4 2 . . . . 4 5 . . 10 4 6 . AOE 19 | . . . 5 1 . . 1 2 . 2 . . 8 . Classes Destroyed 18 | . 8 1 2 3 . 1 1 1 . 1 . . . . Worker 22 | . 4 1 4 . . . 6 2 . . 1 . 4 . Builder 10 | . 1 . 4 . . . 4 . . . . . 1 . Tunneler 4 | . . . . . . 1 1 1 . . . 1 . . Hauler 15 | . 1 . 5 . . . 6 1 . . . 1 1 . Recycler 12 | . 1 . . 1 . 1 4 4 . . . . 1 . Mechanic 3 | . . . 1 . . . 1 1 . . . . . . Operator 7 | . 2 . 1 . . . 2 1 . . . 1 . . Watcher 13 | . 2 . 2 . . . 5 . . . 2 . 2 . Swarmer 34 | . 6 . 15 . . . 10 3 . . . . . . Grunt 39 | . 8 2 3 3 . . 4 7 . . 5 2 5 . Brawler 4 | . . . 1 . . . 1 . . . . 1 1 . Duelist 4 | . . . . 1 . . . 1 . . 1 . 1 . Sentry 21 | . . 2 6 . . . 8 2 1 . 1 1 . . Demolisher 2 | . . . . 2 . . . . . . . . . . Hunter 7 | . . . . . . . 3 1 . . 1 . 2 . Programmer 12 | . . . . . . . . 5 . . 2 . 5 . Compactor 2 | . . . . . . . . . . 2 . . . . Assembled 10 | . . . . 10 . . . . . . . . . . Best Kill Streak 12 | . 5 2 7 12 . 2 6 3 1 1 5 3 9 . Combat Bots Only 12 | . 5 2 3 12 . . 4 3 1 1 5 3 4 . Max Kills in Single Turn 6 | . 2 1 4 2 . 1 2 2 1 1 2 1 6 . Gunslinging 1 | . . . . 1 . . . 1 . . . . . . Exploded 3 | . . . 3 1 . . 1 1 . 1 . . 3 . Melee 1 | . . . . . . . 1 . 1 . . . . . Uniques/NPCs Destroyed . | . . . . . . . . . . . . . . . Combat | -11 -10 -10 -9 -9 -9 -8 -8 -7 -6 -6 -6 -5 -4 -3 -------- Run | Scr Mat Min Mat Min Exi Min Mat Fac Fac Was Fac Fac Fac Res Damage Taken 8955 | . 518 437 857 1081 . . 1370 1769 203 53 500 75 639 1453 Core 1343 | . 132 92 71 138 . . 201 260 42 . 50 . 69 288 Absorbed by Shields 111 | . . . . . . . . . 111 . . . . . Core Remaining (%) 70 | 100 . 10 . . . 47 63 62 . . 89 100 94 . Volleys Fired 478 | . 70 10 91 47 . 3 128 85 . 14 13 . 17 . Largest 3 | . 2 2 2 2 . 2 2 3 . 1 3 . 1 . Hottest 115 | . 80 65 58 68 . 46 90 115 . 39 99 . 39 . Shots Fired 988 | . 118 14 175 85 . 6 216 226 . 14 69 19 46 . Gun 733 | . 64 7 171 82 . 6 201 164 . . 38 . . . Cannon 213 | . 54 7 . . . . 13 60 . . 31 19 29 . Launcher 42 | . . . 4 3 . . 2 2 . 14 . . 17 . Special . | . . . . . . . . . . . . . . . Kinetic 738 | . 55 12 171 69 . 6 123 185 . . 69 19 29 . Thermal . | . . . . . . . . . . . . . . . Explosive 42 | . . . 4 3 . . 2 2 . 14 . . 17 . Electromagnetic 208 | . 63 2 . 13 . . 91 39 . . . . . . Robot Hit Streak 21 | . 7 5 8 19 . 2 19 12 . 5 10 17 21 . Robot Miss Streak 8 | . 6 1 8 4 . 1 3 8 . 5 3 1 3 . Penetration Max 1 | . . . . . . . 1 1 . . . . . . Secondary Targets 8 | . . . 1 5 . . . 2 . . . . . . Max Gunslinging Chain 1 | . . . 1 1 . . . 1 . . . . . . Autonomous 79 | . . . . . . . . . . . 31 19 29 . Shots Hit Robots 669 | . 78 11 90 61 . 2 167 153 5 8 41 22 31 . Core Hits 355 | . 45 9 56 33 . 2 67 68 1 8 12 7 47 . Critical Hits 12 | . . 1 1 . . . 2 3 1 . 1 3 . . Critical Kills 9 | . . 1 . . . . 2 1 1 . 1 3 . . Critical Parts Destroyed 3 | . . . 1 . . . . 2 . . . . . . Melee Attacks 108 | . . . 8 . . . 74 3 8 . 1 8 5 1 Impact 8 | . . . 8 . . . . . . . . . . . Slashing 85 | . . . . . . . 74 3 8 . . . . . Piercing 15 | . . . . . . . . . . . 1 8 5 1 Sneak Attacks 8 | . . . . . . . 5 1 . . . 2 . . Combat Hostiles . | . . . . . . . . . . . . . . . Follow-up Attacks . | . . . . . . . . . . . . . . . Damage Inflicted 22003 | . 1118 198 2018 895 . 42 3994 3033 233 1850 2158 1893 4571 . Guns 7549 | . 687 95 1506 878 . 42 2471 1857 . . 13 . . . Cannons 7138 | . 353 103 . . . . 278 668 . . 1964 1588 2184 . Explosions 5621 | . 78 . 512 17 . . 314 282 . 1850 181 . 2387 . Melee 1695 | . . . . . . . 931 226 233 . . 305 . . Ramming . | . . . . . . . . . . . . . . . Kinetic 12212 | . 353 159 1506 803 . 42 1587 2013 . . 1977 1588 2184 . Thermal 1152 | . 78 . . . . . 121 97 . . 181 . 675 . Explosive 4290 | . . . 345 17 . . 193 185 . 1850 . . 1700 . Electromagnetic 2654 | . 687 39 167 75 . . 1162 512 . . . . 12 . Impact . | . . . . . . . . . . . . . . . Slashing 1390 | . . . . . . . 931 226 233 . . . . . Piercing 305 | . . . . . . . . . . . . 305 . . Highest Corruption 6 | . 1 1 1 1 1 1 . 3 . . 1 . 5 6 Average Corruption 1 | . 1 1 1 1 1 1 . 2 . . 1 . 4 1 Corruption Purged . | . . . . . . . . . . . . . . . Effects 69 | . 7 2 12 1 2 2 . 35 . . . . 8 . Message Errors 25 | . 4 2 4 . 2 . . 9 . . . . 4 . Matter Fused 9 | . . . . . . . . 7 . . . . 2 . Heat Flow Errors 4 | . . . . . . . . 3 . . . . 1 . Energy Discharges 12 | . . . 3 . . 2 . 7 . . . . . . Data Loss (minor) 9 | . 2 . 2 . . . . 5 . . . . . . Targeting Errors 9 | . . . 3 1 . . . 4 . . . . 1 . Weapon Failures 1 | . 1 . . . . . . . . . . . . . Overload Shots . | . . . . . . . . . . . . . . . Overflow Damage 1525 | . 21 . . 2 . . 122 155 49 . 420 154 602 . Projectiles 1023 | . 14 . . . . . . 1 . . 420 154 434 . Explosions 197 | . 7 . . 2 . . . 20 . . . . 168 . Melee 305 | . . . . . . . 122 134 49 . . . . . Knockbacks 41 | . 2 1 . . . . . 18 . . 9 2 9 . Impact . | . . . . . . . . . . . . . . . Kinetic 39 | . 2 1 . . . . . 18 . . 9 2 7 . Secondary 2 | . . . . . . . . . . . . . 2 . Self-Inflicted Damage 876 | . 87 . 133 9 . . 8 155 . 55 152 . 277 . Shots 27 | . 3 . 5 1 . . 1 3 . 4 2 . 8 . Rammed . | . . . . . . . . . . . . . . . Targets Rammed . | . . . . . . . . . . . . . . . Kicked . | . . . . . . . . . . . . . . . Crushed . | . . . . . . . . . . . . . . . Highest Temperature 437 | . 437 82 211 178 . . 143 274 . 4 300 . 178 . Average Temperature 67 | . 93 34 54 88 . . 23 69 . 3 120 . 78 . Received Heat Transfer 1298 | . 162 123 123 121 . . 333 195 64 . 78 9 . 90 Effects 11 | . 4 . 1 . . . . 3 . . 3 . . . Shutdowns 1 | . 1 . . . . . . . . . . . . . Energy Bleed 1 | . 1 . . . . . . . . . . . . . Interference 8 | . 1 . 1 . . . . 3 . . 3 . . . Damage (minor) 1 | . 1 . . . . . . . . . . . . . Siege Activations . | . . . . . . . . . . . . . . . Robots Corrupted 1 | . . . . . . . 1 . . . . . . . Combat Hostiles 1 | . . . . . . . 1 . . . . . . . Parts Fried 10 | . . . . . . . 6 4 . . . . . . Impact Corruptions 1 | . . . . . . . . . . . . . 1 . Robots Melted . | . . . . . . . . . . . . . . . Combat Hostiles . | . . . . . . . . . . . . . . . Parts Melted 3 | . 1 . 1 1 . . . . . . . . . . Heat Transferred 900 | . 200 . . . . . 100 . . . 100 . 500 . Parts Sabotaged . | . . . . . . . . . . . . . . . Parts Stolen . | . . . . . . . . . . . . . . . Parts Stripped . | . . . . . . . . . . . . . . . Power Chain Reactions 6 | . 3 . . . . . 2 1 . . . . . . Missiles Intercepted . | . . . . . . . . . . . . . . . Alert | -11 -10 -10 -9 -9 -9 -8 -8 -7 -6 -6 -6 -5 -4 -3 ------- Run | Scr Mat Min Mat Min Exi Min Mat Fac Fac Was Fac Fac Fac Res Peak Influence 970 | . 259 146 485 105 . 10 572 500 205 163 374 304 970 552 Average Influence 211 | . 110 81 176 72 . 1 202 328 185 109 168 231 609 489 Maximum Alert Level 3 | . 1 . 2 . . . 2 2 1 . 1 1 3 2 Low Security (%) 56 | 100 93 100 65 100 . 100 59 . 86 100 76 26 25 . Level 1 28 | . 6 . 25 . . . 19 88 13 . 23 73 . . Level 2 13 | . . . 9 . . . 20 11 . . . . 28 100 Level 3 1 | . . . . . . . . . . . . . 45 . Level 4 . | . . . . . . . . . . . . . . . Level 5 . | . . . . . . . . . . . . . . . High Security . | . . . . . . . . . . . . . . . Max Security . | . . . . . . . . . . . . . . . Squads Dispatched 23 | . 2 1 1 . . . 4 8 . . 2 . 3 2 Investigation 5 | . . 1 . . . . 2 1 . . 1 . . . Extermination 6 | . . . . . . . . 4 . . 1 . 1 . Reinforcement 10 | . 2 . 1 . . . 2 3 . . . . 1 1 Assault 2 | . . . . . . . . . . . . . 1 1 Garrison . | . . . . . . . . . . . . . . . Intercept . | . . . . . . . . . . . . . . . Construction Impeded 2 | . . . . . . . . 1 . . . . 1 . Haulers Reinforced 1 | . . . . . . . . 1 . . . . . . Stealth | -11 -10 -10 -9 -9 -9 -8 -8 -7 -6 -6 -6 -5 -4 -3 --------- Run | Scr Mat Min Mat Min Exi Min Mat Fac Fac Was Fac Fac Fac Res Distress Signals 15 | . . . 2 1 . . 6 1 . . 1 . 3 1 Communications Jammed . | . . . . . . . . . . . . . . . Distress Signals . | . . . . . . . . . . . . . . . Times Spotted 265 | . 32 5 53 17 . . 58 25 1 6 17 7 20 24 Peak Tracking Total 11 | . 6 2 7 9 . . 8 6 1 5 8 4 7 11 Tactical Retreats 35 | . 1 1 6 1 . . 7 3 . . 4 2 3 7 Traps | -11 -10 -10 -9 -9 -9 -8 -8 -7 -6 -6 -6 -5 -4 -3 ------- Run | Scr Mat Min Mat Min Exi Min Mat Fac Fac Was Fac Fac Fac Res Traps Triggered 13 | . 1 . 1 . . . 2 4 1 . . 3 1 . Indirectly . | . . . . . . . . . . . . . . . Trap Hack Attempts . | . . . . . . . . . . . . . . . Triggered . | . . . . . . . . . . . . . . . Disarmed . | . . . . . . . . . . . . . . . Reprogrammed . | . . . . . . . . . . . . . . . Reused . | . . . . . . . . . . . . . . . Traps Extracted . | . . . . . . . . . . . . . . . Installed . | . . . . . . . . . . . . . . . Triggered . | . . . . . . . . . . . . . . . Machines | -11 -10 -10 -9 -9 -9 -8 -8 -7 -6 -6 -6 -5 -4 -3 ---------- Run | Scr Mat Min Mat Min Exi Min Mat Fac Fac Was Fac Fac Fac Res Machines Disabled 40 | . . . 8 1 . . 2 7 . . 4 . 18 . Max in Single Turn 15 | . . . 2 1 . . 1 4 . . 4 . 15 . Garrison Access 3 | . . . . . . . 1 2 . . . . . . Machines Sabotaged . | . . . . . . . . . . . . . . . Garrisons Compromised . | . . . . . . . . . . . . . . . Overloaded Fab Kills . | . . . . . . . . . . . . . . . Fab Network Shutdowns . | . . . . . . . . . . . . . . . Hacking | -11 -10 -10 -9 -9 -9 -8 -8 -7 -6 -6 -6 -5 -4 -3 --------- Run | Scr Mat Min Mat Min Exi Min Mat Fac Fac Was Fac Fac Fac Res Machines Accessed 41 | . 4 1 10 . 1 . 11 7 1 . 4 1 1 . Terminals 29 | . 4 . 9 . . . 9 3 1 . 1 1 1 . Fabricators 1 | . . . . . . . . . . . 1 . . . Repair Stations 4 | . . . 1 . . . 1 2 . . . . . . Recycling Units 1 | . . . . . . . . . . . 1 . . . Scanalyzers . | . . . . . . . . . . . . . . . Garrison Access 4 | . . . . . . . 1 2 . . 1 . . . Total Hacks 116 | . 9 1 40 . 1 . 33 13 2 . 11 2 4 . Successful 79 | . 5 1 30 . 1 . 23 8 2 . 7 . 2 . Failed 37 | . 4 . 10 . . . 10 5 . . 4 2 2 . Catastrophic 5 | . . . 2 . . . 2 . . . . . 1 . Database Lockouts . | . . . . . . . . . . . . . . . Manual 63 | . 9 . 19 . 1 . 18 6 1 . 4 2 3 . Terminals 78 | . 9 . 30 . . . 21 6 2 . 4 2 4 . Fabricators 4 | . . . . . . . . . . . 4 . . . Repair Stations 24 | . . . 10 . . . 11 3 . . . . . . Recycling Units 2 | . . . . . . . . . . . 2 . . . Scanalyzers . | . . . . . . . . . . . . . . . Garrison Access 6 | . . . . . . . 1 4 . . 1 . . . Terminal Hacks 28 | . 2 1 14 . 1 . 5 1 1 . 2 . 1 . Part Schematic 1 | . . . . . . . 1 . . . . . . . Robot Analysis 1 | . . . 1 . . . . . . . . . . . Prototype ID Bank 3 | . . . 3 . . . . . . . . . . . Open Door 1 | . . 1 . . . . . . . . . . . . Level Access Points 1 | . . . . . . . . . . . 1 . . . Terminal Index 2 | . . . 1 . . . 1 . . . . . . . Fabricator Index 1 | . . . . . . . . . 1 . . . . . Alert Level 4 | . . . 2 . . . 1 . . . . . 1 . Unreport Threat 3 | . . . 3 . . . . . . . . . . . Locate Traps 4 | . 1 . 2 . . . . 1 . . . . . . Recall Investigation 1 | . . . . . . . 1 . . . . . . . Hauler Manifests 4 | . 1 . 1 . . . 1 . . . 1 . . . Registered Components 1 | . . . 1 . . . . . . . . . . . EX-Prototype ID Bank 1 | . . . . . 1 . . . . . . . . . Fabricator Hacks 2 | . . . . . . . . . . . 2 . . . Load Schematic 1 | . . . . . . . . . . . 1 . . . Build 1 | . . . . . . . . . . . 1 . . . Repair Station Hacks 22 | . . . 10 . . . 11 1 . . . . . . Scan Component 12 | . . . 5 . . . 6 1 . . . . . . Repair 10 | . . . 5 . . . 5 . . . . . . . Recycling Unit Hacks 1 | . . . . . . . . . . . 1 . . . Report Inventory 1 | . . . . . . . . . . . 1 . . . Scanalyzer . | . . . . . . . . . . . . . . . Garrison Access Hacks 3 | . . . . . . . 1 2 . . . . . . Seal Access 3 | . . . . . . . 1 2 . . . . . . Unauthorized Hacks 56 | . 10 . 14 . . . 13 8 2 . 5 2 2 . Terminals 22 | . 3 . 6 . . . 6 4 1 . 1 . 1 . Assimilate 6 | . . . 2 . . . 4 . . . . . . . Botnet 13 | . 2 . 3 . . . 2 3 1 . 1 . 1 . Operators 3 | . 1 . 1 . . . . 1 . . . . . . Fabricators 1 | . . . . . . . . . . . 1 . . . Siphon 1 | . . . . . . . . . . . 1 . . . Repair Stations . | . . . . . . . . . . . . . . . Recycling Units . | . . . . . . . . . . . . . . . Scanalyzers . | . . . . . . . . . . . . . . . Garrison Access . | . . . . . . . . . . . . . . . Data Cores Recovered 2 | . . . . . . . . 1 . . . 1 . . Used 2 | . . . . . . . . 1 . . . 1 . . Hacking Detections 35 | . 4 . 9 . . . 9 6 1 . 4 1 1 . Full Trace Events 1 | . . . . . . . . . . . 1 . . . Feedback Events . | . . . . . . . . . . . . . . . Feedback Blocked . | . . . . . . . . . . . . . . . Robot Schematics Acquired . | . . . . . . . . . . . . . . . Robots Built . | . . . . . . . . . . . . . . . Matter . | . . . . . . . . . . . . . . . Time . | . . . . . . . . . . . . . . . Total Robot Build Rating . | . . . . . . . . . . . . . . . Part Schematics Acquired 1 | . . . . . . . 1 . . . . . . . Parts Built 1 | . . . . . . . . . . . 1 . . . Matter 109 | . . . . . . . . . . . 109 . . . Time 73 | . . . . . . . . . . . 73 . . . Total Part Build Rating 3 | . . . . . . . . . . . 3 . . . Parts Repaired 10 | . . . 5 . . . 5 . . . . . . . Time 381 | . . . 173 . . . 208 . . . . . . . Parts Recycled . | . . . . . . . . . . . . . . . Recycled Matter . | . . . . . . . . . . . . . . . Retrieved Matter . | . . . . . . . . . . . . . . . Retrieved Components . | . . . . . . . . . . . . . . . Parts Scanalyzed . | . . . . . . . . . . . . . . . Part Schematics Acquired . | . . . . . . . . . . . . . . . Parts Damaged . | . . . . . . . . . . . . . . . Bothacking | -11 -10 -10 -9 -9 -9 -8 -8 -7 -6 -6 -6 -5 -4 -3 ------------ Run | Scr Mat Min Mat Min Exi Min Mat Fac Fac Was Fac Fac Fac Res Used RIF Installer . | . . . . . . . . . . . . . . . Robots Hacked . | . . . . . . . . . . . . . . . Non-combat . | . . . . . . . . . . . . . . . Combat . | . . . . . . . . . . . . . . . Robot Hacks Applied . | . . . . . . . . . . . . . . . Relay Couplers Released . | . . . . . . . . . . . . . . . Robots Rewired . | . . . . . . . . . . . . . . . Allies Hacked . | . . . . . . . . . . . . . . . Hacks Repelled . | . . . . . . . . . . . . . . . Allies | -11 -10 -10 -9 -9 -9 -8 -8 -7 -6 -6 -6 -5 -4 -3 -------- Run | Scr Mat Min Mat Min Exi Min Mat Fac Fac Was Fac Fac Fac Res Total Allies 8 | . . . 2 2 . . 2 . . . 2 . . . Largest Group 2 | . . . 1 2 1 . 1 . . . 2 . . . Highest-Rated Group 62 | . . . 10 46 15 . 10 . . . 62 . . . Highest-Rated Ally 31 | . . . 10 31 15 . 10 . . . 31 . . . Total Orders 11 | . . . . 1 . . 6 . . . 4 . . . GOTO 5 | . . . . 1 . . 3 . . . 1 . . . FOLLOW 4 | . . . . . . . 3 . . . 1 . . . EXPLORE 1 | . . . . . . . . . . . 1 . . . RETURN 1 | . . . . . . . . . . . 1 . . . Ally Attacks 22 | . . . . 5 . . . . . . 17 . . . Total Damage 360 | . . . . 83 . . . . . . 277 . . . Kills 1 | . . . . . . . . . . . 1 . . . Allies Corrupted . | . . . . . . . . . . . . . . . Allies Melted . | . . . . . . . . . . . . . . . Intel | -11 -10 -10 -9 -9 -9 -8 -8 -7 -6 -6 -6 -5 -4 -3 ------- Run | Scr Mat Min Mat Min Exi Min Mat Fac Fac Was Fac Fac Fac Res Robot Analysis Total 1 | . . . 1 . . . . . . . . . . . Derelict Logs Recovered 3 | . . 1 . 2 . . . . . . . . . . Drone Launches 2 | . . . . . . . . . . . 2 . . . Drone Recoveries . | . . . . . . . . . . . . . . . Exploration | -11 -10 -10 -9 -9 -9 -8 -8 -7 -6 -6 -6 -5 -4 -3 ------------- Run | Scr Mat Min Mat Min Exi Min Mat Fac Fac Was Fac Fac Fac Res Turns Passed 15091 | 38 1042 615 2359 599 475 682 4764 2550 299 81 620 183 499 285 Spaces Moved 9840 | 38 801 380 1002 223 231 411 2324 1708 172 112 938 241 741 518 Core 17 | 12 . 1 . . . . . . . . . . 2 2 Treads 3 | . . . . . . . . . . . . . . 3 Legs 5492 | . . 375 1002 223 231 311 1466 1708 172 4 . . . . Wheels 1789 | 26 801 4 . . . 100 858 . . . . . . . Hover . | . . . . . . . . . . . . . . . Flight 2539 | . . . . . . . . . . 108 938 241 739 513 Fastest Speed 39 | 50 80 90 180 150 180 100 93 120 155 39 39 39 39 50 Average Speed 110 | 70 90 150 180 203 201 160 112 126 155 43 39 39 43 53 Slowest Speed 700 | 80 110 550 180 210 240 180 180 155 155 155 124 39 700 700 Overloaded Moves . | . . . . . . . . . . . . . . . Propulsion Burnouts . | . . . . . . . . . . . . . . . Robots Hopped 25 | . . . . . . . . . . . 2 . 2 21 Cave-ins Triggered . | . . . . . . . . . . . . . . . Exploration Rate (%) 43 | 3 64 75 70 47 60 82 91 28 3 73 13 5 22 22 Regions Visited 14 Branch Regions 4 Pre-discovered Areas 1 | . . . . 1 . . . . . . . . . . Known Exits Taken 4 | . . . . 1 . . . . . . 1 1 1 . Unknown Exits Taken 8 | 1 1 1 1 . 1 1 1 1 . . . . . . Scrap Searched 2 | . . 1 . . . 1 . . . . . . . . Spaces Dug 97 | . . . 5 . . . 53 23 1 . 1 . 13 1 Terrain Destroyed 625 | . 14 . 46 26 . . 112 43 1 138 55 . 189 1 Melee 66 | . . . 5 . . . 53 . 1 . 1 . 5 1 Projectile 26 | . . . . . . . 5 12 . . 7 . 2 . AOE 533 | . 14 . 41 26 . . 54 31 . 138 47 . 182 . Actions | -11 -10 -10 -9 -9 -9 -8 -8 -7 -6 -6 -6 -5 -4 -3 --------- Run | Scr Mat Min Mat Min Exi Min Mat Fac Fac Was Fac Fac Fac Res Total 13035 | 45 994 408 1391 283 241 427 4139 1914 189 131 1159 315 896 503 Wait 2244 | . 102 . 246 1 . 7 1513 75 6 . 168 6 120 . Move 9780 | 37 800 379 1001 222 230 410 2323 1707 172 111 933 240 736 479 Hop 22 | . . . . . . . . . . . 2 . 2 18 Pick Up 79 | 2 6 4 16 3 4 2 22 7 . . 9 1 3 . Fast Attach 62 | 6 5 6 5 2 . 2 16 8 . . 4 1 4 3 Attach 43 | . 2 1 3 7 . . 7 4 2 3 8 2 3 1 Detach 12 | . 2 . . . . . 1 1 . 1 4 2 1 . Swap 73 | . 3 2 10 1 4 . 36 9 1 . 5 . 2 . Drop 79 | . 4 6 11 . 3 3 19 15 . 2 11 1 3 1 Fire 478 | . 70 10 91 47 . 3 128 85 . 14 13 . 17 . Melee 108 | . . . 8 . . . 74 3 8 . 1 8 5 1 Ram . | . . . . . . . . . . . . . . . Kick . | . . . . . . . . . . . . . . . Crush . | . . . . . . . . . . . . . . . Escape Stasis 54 | . . . . . . . . . . . . 54 . . Rewire . | . . . . . . . . . . . . . . . Trap . | . . . . . . . . . . . . . . . Miscellaneous 1 | . . . . . . . . . . . 1 . . . Route ------- -11/Scrapyard -10/Materials (discovered 2 exits: *Mat / *Min) -10/Mines -9/Materials (discovered 4 exits: *Mat x2 / [*Min x2]) -9/Mines (discovered 2 exits: *Mat / *Exi) -9/Exiles -8/Mines -8/Materials (discovered 2 exits: *Fac x2) -7/Factory (discovered 3 exits: *Fac / Sto / [*Low]) -6/Factory -6/Waste -6/Factory (discovered 4 exits: *Fac x4) -5/Factory -4/Factory -3/Research History --------- Turn | Location | Event 6 | -11/Scrapyard | Discovered new exit (range 13) 39 | -11/Scrapyard | Entered Materials 196 | -10/Materials | Discovered new exit (range 16) 310 | -10/Materials | Build established: Mutant 425 | -10/Materials | Discovered new exit (range 6) 957 | -10/Materials | Core integrity fell below 50% 1081 | -10/Materials | Entered Mines 1245 | -10/Mines | Core integrity fell below 20% 1494 | -10/Mines | Received a Rocket Launcher from a helpful Derelict 1582 | -10/Mines | Met a Derelict shopkeep closing up shop 1684 | -10/Mines | Discovered new exit (range 9) 1696 | -10/Mines | Entered Materials 1696 | -9/Materials | Evolved 2 slots: Utility x2 1763 | -9/Materials | Discovered new exit (range 16) 2167 | -9/Materials | Discovered new exit (range 16) 2611 | -9/Materials | Discovered new exit (range 7) 3341 | -9/Materials | Discovered new exit (range 8) 3870 | -9/Materials | Repaired Hrd. Light Armor Plating 3910 | -9/Materials | Repaired Hrd. Medium Armor Plating 3937 | -9/Materials | Repaired Aluminum Leg 3990 | -9/Materials | Repaired Imp. Assault Rifle 4017 | -9/Materials | Repaired Aluminum Leg 4055 | -9/Materials | Entered Mines 4055 | -9/Mines | Accompanied by 1 ally 4056 | -9/Mines | Assembled infested the area 4166 | -9/Mines | Lost 3 parts (1n1u1w) 4173 | -9/Mines | Destroyed 12 combat bots 4195 | -9/Mines | Learned location of Zion (-6) 4204 | -9/Mines | Core integrity fell below 50% 4238 | -9/Mines | Lost 3 parts (2n1w) 4490 | -9/Mines | Identified exit to Exiles 4578 | -9/Mines | Discovered new exit (range 12) 4643 | -9/Mines | Deemed a non-threat by the Exiles lab entrance 4654 | -9/Mines | Entered Exiles 4654 | -9/Exiles | Accompanied by 1 ally 4705 | -9/Exiles | Met 8R-AWN 4743 | -9/Exiles | Met EX-HEX 4797 | -9/Exiles | Met EX-BIN 4827 | -9/Exiles | Aligned with FarCom system 4829 | -9/Exiles | Given EX-Vault access code 4888 | -9/Exiles | Opened EX-Vault 4900 | -9/Exiles | Found Flying Fortress v7 4919 | -9/Exiles | Found AWS/Autocannon 4968 | -9/Exiles | Warned to stay clear of 0b10 Research branches 5020 | -9/Exiles | Met EX-DEC 5115 | -9/Exiles | Discovered new exit (range 10) 5129 | -9/Exiles | Stole two prototypes: Flying Fortress v7, AWS/Autocannon 5129 | -9/Exiles | Entered Mines 5801 | -8/Mines | Discovered new exit (range 11) 5811 | -8/Mines | Entered Materials 5811 | -8/Materials | Evolved 2 slots: Propulsion x2 6113 | -8/Materials | Build established: Hauler-Mutant 6711 | -8/Materials | Build established: Scavenger-Mutant 7601 | -8/Materials | Lost 6 parts (1p2n3w) 8135 | -8/Materials | Build established: Hauler-Mutant 8583 | -8/Materials | Repaired Imp. Ion Engine 8629 | -8/Materials | Repaired Imp. Carbon-fiber Leg 8656 | -8/Materials | Discovered new exit (range 15) 9313 | -8/Materials | Discovered new exit (range 16) 9856 | -8/Materials | Repaired Imp. Carbon-fiber Leg 9907 | -8/Materials | Repaired Imp. Carbon-fiber Leg 10344 | -8/Materials | Repaired Imp. Carbon-fiber Leg 10575 | -8/Materials | Entered Factory 10575 | -7/Factory | Evolved 2 slots: Propulsion x1, Weapon x1 10576 | -7/Factory | Identified exit to Storage 10577 | -7/Factory | FarCom data flow suspended 10716 | -7/Factory | Discovered new exit (range 8) 11336 | -7/Factory | Discovered new exit (range 8) 11359 | -7/Factory | Build established: Hacker-Gunner 12751 | -7/Factory | Lost 4 parts (3n1w) 13015 | -7/Factory | Build established: Hacker-Mutant 13125 | -7/Factory | Entered another Factory area 13125 | -6/Factory | Evolved 2 slots: Utility x2 13202 | -6/Factory | Discovered new exit (range 5) 13424 | -6/Factory | Sucked down chute 13424 | -6/Factory | Entered Waste 13435 | -6/Waste | Spotted C-40 Crusher 13456 | -6/Waste | Destroyed C-40 Crusher 13460 | -6/Waste | Spotted C-40 Crusher 13463 | -6/Waste | Spotted C-40 Crusher 13464 | -6/Waste | Spotted C-40 Crusher 13466 | -6/Waste | Spotted C-40 Crusher 13482 | -6/Waste | Spotted C-40 Crusher 13496 | -6/Waste | Destroyed C-40 Crusher 13501 | -6/Waste | Discovered new exit (range 12) 13505 | -6/Waste | Entered Factory 13718 | -6/Factory | Fabricated Adv. Sensor Array? 13735 | -6/Factory | Allied Derelicts emerged from ambush trap array 14010 | -6/Factory | Identified exit to Factory 14125 | -6/Factory | Entered another Factory area 14125 | -5/Factory | Evolved 2 slots: Utility x1, Weapon x1 14202 | -5/Factory | Discovered new exit (range 11) 14206 | -5/Factory | Identified exit to Factory 14276 | -5/Factory | Build established: Skirmisher 14308 | -5/Factory | Entered another Factory area 14308 | -4/Factory | Evolved 2 slots: Propulsion x1, Utility x1 14606 | -4/Factory | First assault squad dispatched 14772 | -4/Factory | Discovered new exit (range 12) 14777 | -4/Factory | Identified exit to Research 14807 | -4/Factory | Entered Research 14807 | -3/Research | Evolved 2 slots: Utility x2 14851 | -3/Research | Spotted B-86 Titan 14894 | -3/Research | Lost 3 parts (1n2u) 14919 | -3/Research | Build established: Mutant 14934 | -3/Research | Spotted B-86 Titan 14986 | -3/Research | Lost 4 parts (2u2w) 15057 | -3/Research | First assault squad dispatched 15092 | -3/Research | Self-destructed Last Messages --------------- 14951_ Slug penetrates Wall. 14951_ Imp. Proton Missile Launcher destroyed. 14955_ Penetrated by Slug. 14955_ T-07 Excavator destroyed. 14955_ Acquired 11 matter. 14955_ Adv. Sensor Array destroyed. 14956_ K-01 Serf collects debris. 14971_ Recycling Unit disabled. 14971_ K-01 Serf destroyed. 14976_ Slug penetrates Wall. 15039_ Cannot restore functionality to AWS/Autocannon. 15041_ U-05 Engineer lays Concrete. 15047_ Penetrated by Slug. 15049_ Door malfunctions. 15057_ ALERT: Significant disruption in Zone 3B, assault force dispatched. 15082_ Acquired Hvy. Treads. 15083_ Dropped Flying Fortress v7. 15086_ Acquired Prototype Treads. 15086_ Identified Enh. Armored Medium Treads. 15089_ Acquired Hvy. Treads. Map ----- +----------------------------------------------------+ | ?????????????????????????????????????????????????? | | ?????????????????????????????????????????????????? | | ?????????????????????????????????????????????????? | | ?????????????????????????????????????????????????? | | ?????????????????????????????????????????????????? | | ?????????????????????????????????????????????????? | | ?????????????????????????????????????????????????? | | ?????????????????????????????????????????????????? | | ?????????????????????????????????????????????????? | | ?????????????????????????????????????????????????? | | ?????????????????????????????????????????????????? | | ?????????????????????????????????????????????????? | | ?????????????????????????????????????????????????? | | ?????????????????????????????????????????????????? | | ?????????????????????????????????????????????????? | | ?????????????????????????????????????????????????? | | ?????????????????????????????????????????????????? | | ?????????????????????????????????????????????????? | | ?????????????????????????????????????????????????? | | ?????????????????????????????????????????????????? | | ?????????????????????????????????????????????????? | | ?????????????????????????????????????????????????? | | ?????????????????????????????????????????????????? | | ???????????????##################????????????????? | | ???????????????# #????????????????? | | ??????????###### ]@ #????????????????? | | ??????????# p ]] #????????????????? | | ??????????# #p = ]= #????????????????? | | ??????????# /p #????????????????? | | ??????????+ # #????????????????? | | ??????????# # #????????????????? | | ??????????# # #????????????????? | | ####??????# # #????????????????? | | # ????# ##################????????????????? | | # ??# #?????????????????????????????????? | | # # #?????????????????????????????????? | | #??""""" + ########??????????????????????????? | | ???""""" # +??????????????????????????? | | ????""""??# #??????????????????????????? | | #?? ????# #??????????????????????????? | | #? ??????# """ #??????????????????????????? | | #?????????# """ #??????????????????????????? | | #?????????# """ +??????????????????????????? | | #?????????# #??????????????????????????? | | ??????????# #??????????????????????????? | | ??????????# #???????????????????????#### | | ########### #???????????????????????# | | #???????????????????????# ## | | #???????????????????????# # | | #???????????????????????# # | +----------------------------------------------------+ Best States ------------- Heat Dissipation 46 Energy Generation 21 Energy Capacity 300 Matter Stores 300 Matter Capacity 300 Sight Range 16 Robot Scan Range 16 Terrain Scan Density 10 Power Amplification 30 Additional Mass Support 6 Armor Coverage 375 Weapon Shielding 66 Evasion (%) 73 Recoil Reduction 5 Offensive Hacking 20 Item Schematics ----------------- Adv. Sensor Array | -8/Materials | Hacked Robot Schematics ------------------ None Fabricated ------------ Adv. Sensor Array | x1 | -6/Factory Alien Tech Used ----------------- None Achievements -------------- None Challenges ------------ None Game ------ Seed ShockBladeDissipator Manual? 0 Play Time 03:38:09 Cumulative 79.5 hours Start 2019.12.15 @ 23:45:33 End 2019.12.16 @ 10:59:27 Sessions 1 Manual Loads 0 Difficulty Rogue Special Mode None Game No. 37 Rogue 33 Adventurer 4 Explorer 0 Win Type - Total 0 Types 0/0/0/0/0/0/0 Lore% 44 Gallery% 53 Achievement% 41 Wizard Run 0 Options --------- ASCII 1 Keyboard 0 Movement Numpad Keybinds 0 Fullscreen 1 Font 32/Terminus Map View 76x50 Tactical HUD 1 Map Filters NONE Filters NONE Steam 1 RUN: 11179f28-c7b4-47dd-b45b-23b0fb466bf9